bitfinex/quotes_ETHUSD_20251119
["timestamp","ask_amount","ask_price","bid_price","bid_amount"]
[1763519761142,4.50969519,3126.0,3125.9,0.001]
[1763519766070,4.51169519,3126.0,3125.9,0.001]
[1763519766549,4.04019519,3126.0,3125.9,0.001]
[1763519766782,3.00376171,3126.0,3125.9,0.001]
[1763519766984,2.1053706,3126.0,3125.9,0.001]
[1763519767650,2.5596706,3126.0,3125.9,0.001]
[1763519767979,2.1053706,3126.0,3125.9,0.001]
[1763519768575,1.6137706,3126.0,3125.9,0.4544]
[1763519769580,1.6137706,3126.0,3125.9,0.9388]
[1763519769581,0.002,3126.0,3125.9,0.9388]
[1763519770350,0.50443959,3126.0,3125.9,0.9388]
[1763519772082,0.002,3126.3,3125.9,1.48425651]
[1763519772402,0.002,3126.3,3126.2,0.6398]
[1763519772700,0.002,3126.7,3126.4,4.51576514]
[1763519772994,0.002,3126.7,3126.6,0.4534]
[1763519773159,0.50432055,3126.7,3126.6,0.4534]
[1763519773354,0.50432055,3126.7,3126.6,1.48315651]
[1763519773862,0.50432055,3126.7,3126.6,0.9378]
[1763519774489,0.50432055,3126.7,3126.6,0.4534]
[1763519774663,0.50432055,3126.7,3126.2,0.1864]
[1763519774982,0.50432055,3126.7,3126.3,0.4844]
[1763519775353,0.50432055,3126.7,3126.6,0.4534]
[1763519776389,0.50432055,3126.7,3126.6,0.9378]
[1763519780059,1.00663922,3126.7,3126.6,0.9378]
[1763519782615,1.00663922,3126.7,3126.6,0.4534]
[1763519782778,0.91511867,3126.7,3126.2,0.1864]
[1763519782975,0.91511867,3126.7,3126.3,0.493]
[1763519783588,0.50431867,3126.7,3126.6,0.4925]
[1763519784289,0.50431867,3126.7,3126.6,0.9855]
[1763519785706,0.002,3126.7,3126.6,0.9855]
[1763519786483,0.002,3126.7,3126.2,0.1864]
[1763519786484,0.4713,3126.7,3126.2,0.1864]
[1763519786679,0.4713,3126.7,3126.2,0.6794]
[1763519786887,0.0043,3126.3,3125.9,0.001]
[1763519787086,0.4995,3126.3,3125.9,0.001]
[1763519787992,0.405504,3126.5,3125.9,0.001]
[1763519788188,0.405504,3126.5,3125.9,0.494]
[1763519788600,0.002,3126.7,3125.9,0.494]
[1763519789827,0.405504,3126.6,3125.9,0.494]
[1763519790494,0.4952,3126.6,3125.9,0.001]
[1763519792110,0.002,3126.7,3126.5,0.4925]
[1763519792388,0.002,3126.7,3126.6,0.4925]
[1763519792587,0.002,3126.7,3126.6,0.9855]
[1763519792781,0.4713,3126.7,3126.2,0.6745]
[1763519793002,0.4713,3126.7,3126.2,0.1815]
[1763519793209,0.002,3126.7,3126.6,0.4925]
[1763519793714,0.002,3126.7,3126.6,0.9855]
[1763519794711,0.002,3126.7,3126.6,0.4925]
[1763519794905,0.002,3126.7,3126.3,0.493]
[1763519795099,0.002,3126.7,3126.6,0.4925]
[1763519795521,0.002,3126.7,3126.6,0.9855]
[1763519795684,0.50436838,3126.7,3126.6,0.9855]
[1763519797831,0.50436838,3126.7,3126.6,0.4925]
[1763519799031,0.50436838,3126.7,3126.6,0.48]
[1763519799200,0.50436838,3126.7,3126.6,0.9546]
[1763519801147,0.50436838,3126.7,3126.6,1.22001601]
[1763519802000,0.002,3126.8,3126.6,1.22001601]
[1763519802200,0.002,3127.0,3126.7,2.66015219]
[1763519802445,0.002,3127.0,3126.9,0.48]
[1763519802800,0.002,3127.0,3126.9,0.9546]
[1763519806637,0.002,3127.0,3126.9,0.48]
[1763519807045,0.002,3127.0,3126.9,0.9546]
[1763519808745,0.002,3127.0,3126.9,0.48]
[1763519809250,0.002,3127.0,3126.9,0.9546]
[1763519811775,0.002,3127.0,3126.9,0.48]
[1763519812370,0.002,3127.0,3126.9,0.9546]
[1763519812678,0.4931,3127.0,3126.4,0.001]
[1763519812977,0.1909,3126.9,3126.4,0.001]
[1763519813375,0.002,3127.0,3126.8,0.48]
[1763519813549,0.002,3127.0,3126.5,0.4746]
[1763519813550,0.4193,3126.9,3126.5,0.4746]
[1763519813873,0.002,3127.0,3126.9,0.48]
[1763519814443,0.8936,3127.0,3126.4,0.001]
[1763519814961,0.4213,3127.0,3126.4,0.001]
[1763519815272,0.002,3127.0,3126.4,0.4756]
[1763519816971,0.002,3127.0,3126.4,0.001]
[1763519816972,0.1909,3126.9,3126.4,0.001]
[1763519817174,0.002,3127.0,3126.4,0.001]
[1763519817376,0.002,3127.0,3126.9,0.48]
[1763519817751,0.002,3127.0,3126.9,0.9546]
[1763519817963,0.002,3127.0,3126.9,0.48]
[1763519818748,0.002,3127.0,3126.5,0.4746]
[1763519819378,0.002,3127.0,3126.9,0.48]
[1763519819777,0.002,3127.0,3126.9,0.9546]
[1763519820073,0.002,3127.0,3126.9,0.48]
[1763519821765,0.002,3127.0,3126.4,0.001]
[1763519821973,0.002,3127.0,3126.5,0.21811522]
[1763519822360,0.002,3127.0,3126.6,0.4746]
[1763519822551,0.002,3127.0,3126.4,0.001]
[1763519822754,0.4193,3126.5,3126.4,0.001]
[1763519824079,0.8916,3126.5,3126.4,0.001]
[1763519829014,1.297104,3126.5,3126.4,0.001]
[1763519830817,2.50349849,3126.5,3126.4,0.001]
[1763519831114,0.405504,3126.4,3126.0,0.001]
[1763519831322,0.0047,3126.1,3126.0,0.001]
[1763519831816,0.899004,3126.1,3126.0,0.001]
[1763519835597,1.19787212,3126.1,3126.0,0.001]
[1763519837136,0.899004,3126.1,3126.0,0.001]
[1763519844866,0.002,3126.8,3126.0,0.4616]
[1763519845020,0.405504,3126.6,3126.0,0.4616]
[1763519845222,0.861804,3126.6,3126.0,0.4616]
[1763519845417,0.4563,3126.6,3126.0,0.4616]
[1763519845742,0.4357,3126.1,3126.0,0.001]
[1763519846144,0.405504,3126.4,3126.0,0.4616]
[1763519846308,0.4583,3126.8,3126.0,0.4926]
[1763519846647,0.405504,3126.7,3126.0,0.4926]
[1763519846850,0.4583,3126.8,3126.1,0.1906]
[1763519847146,0.002,3126.8,3126.1,0.1906]
[1763519847356,0.4563,3126.7,3126.0,0.001]
[1763519847554,0.4563,3126.7,3126.1,0.1906]
[1763519847857,0.002,3126.8,3126.1,0.1906]
[1763519847858,0.407504,3126.8,3126.1,0.1906]
[1763519848018,0.407504,3126.8,3126.1,0.6822]
[1763519848211,0.4357,3126.2,3126.0,0.001]
[1763519848404,0.841204,3126.1,3126.0,0.001]
[1763519848834,1.297304,3126.1,3126.0,0.001]
[1763519849360,1.297304,3126.1,3126.0,0.4616]
[1763519849361,0.405504,3126.1,3126.0,0.4616]
[1763519850240,0.405504,3126.1,3126.0,0.001]
[1763519851640,0.841204,3126.1,3126.0,0.001]
[1763519851838,1.297304,3126.1,3126.0,0.001]
[1763519853321,0.841204,3126.1,3126.0,0.001]
[1763519853842,1.297304,3126.1,3126.0,0.001]
[1763519854941,0.405504,3126.1,3126.0,0.001]
[1763519855828,0.405504,3126.1,3126.0,0.4616]
[1763519857160,0.405504,3126.1,3126.0,0.001]
[1763519857161,0.841204,3126.1,3126.0,0.001]
[1763519857465,0.002,3126.4,3126.0,0.4541]
[1763519857831,0.4679,3126.4,3126.0,0.4541]
[1763519858075,0.4262,3126.1,3126.0,0.001]
[1763519858237,0.002,3126.4,3126.3,0.4531]
[1763519859658,0.002,3126.4,3126.3,0.9211]
[1763519860043,0.002,3126.4,3126.3,0.4531]
[1763519860663,0.4369,3126.4,3126.0,0.001]
[1763519861463,0.002,3126.4,3126.0,0.469]
[1763519863855,0.002,3126.4,3126.0,0.001]
[1763519864204,0.4768,3126.1,3126.0,0.001]
[1763519865076,0.002,3126.4,3126.0,0.4541]
[1763519865599,0.405504,3126.3,3126.0,0.4541]
[1763519866373,0.002,3126.4,3126.2,0.4531]
[1763519866575,0.002,3126.4,3126.3,0.4531]
[1763519866989,0.002,3126.8,3126.3,4.2971]
[1763519867191,0.002,3126.8,3126.7,0.4531]
[1763519867495,0.002,3127.1,3126.7,0.9211]
[1763519867697,0.002,3127.1,3126.9,0.4531]
[1763519868065,0.002,3127.1,3126.9,0.9211]
[1763519868597,0.002,3127.5,3126.9,0.9211]
[1763519868761,1.36501727,3129.4,3127.4,0.4531]
[1763519868762,0.12824726,3129.1,3127.4,0.4531]
[1763519868967,0.48148108,3129.2,3128.5,0.4531]
[1763519869170,0.94738108,3129.2,3128.5,0.4531]
[1763519869370,0.405504,3129.1,3128.5,0.4531]
[1763519869590,0.648,3129.2,3128.5,0.4531]
[1763519869795,0.405504,3129.1,3128.5,0.4531]
[1763519870369,0.1821,3129.2,3128.5,0.4531]
[1763519870675,0.405504,3129.0,3128.3,0.1243]
[1763519871078,0.405504,3128.8,3128.1,0.6528]
[1763519872862,0.405504,3128.8,3128.1,0.1848]
[1763519873200,0.871404,3128.8,3128.1,0.1848]
[1763519875384,0.405504,3129.1,3127.8,0.468]
[1763519875584,0.405504,3129.1,3126.9,0.77841004]
[1763519875585,0.405504,3128.6,3127.7,0.1848]
[1763519876099,0.4659,3128.5,3127.7,0.1848]
[1763519876297,1.57104016,3128.9,3127.8,0.468]
[1763519880930,0.871404,3128.9,3127.8,0.468]
[1763519881644,0.50218669,3129.3,3128.8,0.4531]
[1763519881844,0.50218669,3129.3,3127.9,0.468]
[1763519881845,0.50218669,3129.3,3129.2,0.6379]
[1763519881992,0.1821,3131.2,3129.2,0.6379]
[1763519882186,0.4659,3131.5,3129.2,0.6379]
[1763519882187,0.1821,3131.5,3130.1,0.3948]
[1763519882425,0.1821,3131.5,3130.2,0.3948]
[1763519883806,0.4659,3131.8,3130.2,0.3948]
[1763519884797,0.405504,3131.7,3130.2,0.3948]
[1763519885233,0.407504,3131.5,3130.2,0.3948]
[1763519885539,0.405504,3131.3,3129.7,0.3948]
[1763519885701,0.405504,3131.1,3129.7,0.3948]
[1763519886240,0.405504,3130.9,3129.7,0.3948]
[1763519886741,0.591204,3130.9,3129.7,0.3948]
[1763519886946,0.4538,3130.8,3129.7,0.3948]
[1763519887298,0.405504,3130.9,3129.7,0.3948]
[1763519887930,0.405504,3131.3,3129.7,0.3948]
[1763519888125,0.405504,3131.2,3129.7,0.3948]
[1763519888631,0.405504,3131.0,3129.7,0.3948]
[1763519889232,0.405504,3130.8,3129.7,0.3948]
[1763519889435,0.405504,3130.8,3129.2,0.1848]
[1763519889596,0.4538,3130.7,3129.2,0.1848]
[1763519889928,0.405504,3130.6,3129.2,0.1848]
[1763519890432,0.405504,3130.4,3129.2,0.1848]
[1763519890834,0.405504,3130.4,3128.9,0.105]
[1763519890835,0.452,3129.3,3128.9,0.105]
[1763519891034,0.452,3129.0,3128.4,0.105]
[1763519891635,0.1857,3129.3,3128.4,0.105]
[1763519891833,0.1857,3129.3,3128.4,0.4998]
[1763519892195,0.1857,3129.3,3128.4,0.105]
[1763519892399,0.1857,3129.3,3128.4,0.4998]
[1763519893223,0.591204,3129.5,3128.5,0.3948]
[1763519894626,0.50195942,3129.3,3128.5,0.3948]
[1763519895206,0.50195942,3129.3,3129.2,0.3948]
[1763519895415,0.50195942,3129.3,3128.7,0.3948]
[1763519896014,0.50195942,3129.3,3129.2,0.3948]
[1763519896241,1.55227016,3131.3,3129.2,0.3948]
[1763519896242,0.4538,3130.2,3129.2,0.3948]
[1763519896421,0.4538,3130.2,3129.3,0.3948]
[1763519896606,0.50189718,3129.9,3129.3,0.3948]
[1763519896937,0.405504,3130.1,3128.4,0.105]
[1763519897127,0.1857,3129.8,3128.8,0.3948]
[1763519897516,0.405504,3130.1,3128.8,0.3948]
[1763519898037,0.859304,3130.1,3128.8,0.3948]
[1763519898242,0.4538,3130.0,3128.8,0.3948]
[1763519898839,0.405504,3129.9,3128.4,0.105]
[1763519899042,0.405504,3129.9,3128.4,0.5]
[1763519899246,0.405504,3129.7,3128.5,0.395]
[1763519899646,0.4538,3129.7,3128.5,0.395]
[1763519899845,0.50193046,3129.5,3128.5,0.395]
[1763519900232,0.405504,3130.1,3129.4,0.395]
[1763519900558,0.50188795,3129.9,3129.4,0.395]
[1763519900758,0.405504,3130.1,3129.4,0.395]
[1763519901434,0.4538,3130.8,3129.4,0.79]
[1763519901648,0.4538,3130.8,3129.5,0.395]
[1763519902029,0.405504,3130.7,3129.5,0.395]
[1763519902449,0.4547,3130.6,3129.5,0.395]
[1763519902647,0.4547,3130.6,3128.4,1.41749664]
[1763519902648,0.405504,3130.5,3128.4,0.510504]
[1763519902859,0.405504,3130.5,3129.0,0.395]
[1763519903047,0.405504,3130.3,3129.3,0.001]
[1763519903359,0.405504,3130.3,3129.3,0.396]
[1763519903861,0.50183085,3130.1,3129.3,0.396]
[1763519905089,0.95653085,3130.1,3129.3,0.001]
[1763519905247,0.405504,3130.0,3129.3,0.001]
[1763519905452,0.4987,3129.4,3129.3,0.001]
[1763519905647,0.405504,3129.8,3129.3,0.001]
[1763519906446,0.1844,3129.9,3129.3,0.001]
[1763519907881,0.50183085,3130.1,3129.3,0.001]
[1763519908155,0.95653085,3130.1,3129.3,0.001]
[1763519909456,0.6831,3129.4,3129.3,0.001]
[1763519911069,0.1844,3129.8,3129.3,0.001]
[1763519911454,0.6391,3129.8,3129.3,0.001]
[1763519911866,0.4547,3129.7,3129.3,0.001]
[1763519912387,0.1844,3129.8,3129.3,0.001]
[1763519912602,0.6391,3129.8,3129.3,0.001]
[1763519912959,0.4547,3129.7,3129.3,0.001]
[1763519913382,0.4987,3129.4,3129.3,0.001]
[1763519913864,0.4547,3129.7,3129.3,0.001]
[1763519914060,0.50189959,3129.5,3129.3,0.001]
[1763519914376,0.589904,3129.8,3129.3,0.001]
[1763519914787,0.4547,3129.7,3129.3,0.001]
[1763519914996,0.4987,3129.4,3129.3,0.001]
[1763519915770,0.4547,3129.7,3129.3,0.001]
[1763519917388,0.4642,3129.4,3129.3,0.001]
[1763519918191,0.9628,3129.4,3129.3,0.001]
[1763519919502,1.368304,3129.4,3129.3,0.001]
[1763519923273,0.405504,3129.4,3129.3,0.001]
[1763519923477,0.869704,3129.4,3129.3,0.001]
[1763519923797,1.368304,3129.4,3129.3,0.001]
[1763519924009,0.869704,3129.4,3129.3,0.001]
[1763519925512,1.368304,3129.4,3129.3,0.001]
[1763519931432,1.87028092,3129.4,3129.3,0.001]
[1763519933537,2.05730901,3129.4,3129.3,0.001]
[1763519938609,1.55870901,3129.4,3129.3,0.001]
[1763519939035,2.05730901,3129.4,3129.3,0.001]
[1763519939241,2.05730901,3129.4,3129.3,0.396]
[1763519939242,0.50197692,3129.4,3129.3,0.396]
[1763519941146,0.50397692,3129.4,3129.3,0.791]
[1763519941341,0.002,3129.4,3129.3,0.791]
[1763519942545,0.002,3129.4,3129.3,0.396]
[1763519942712,0.4662,3129.4,3129.3,0.001]
[1763519944244,0.002,3129.4,3129.3,0.396]
[1763519944545,0.002,3129.4,3129.3,0.791]
[1763519944714,0.002,3129.4,3129.3,0.396]
[1763519945141,0.002,3129.4,3129.3,0.791]
[1763519948556,0.002,3129.4,3129.3,1.04078252]
[1763519948761,0.002,3129.4,3129.3,0.791]
[1763519952450,0.002,3129.4,3129.3,0.82295602]
[1763519953242,0.002,3129.4,3129.3,0.791]
[1763519953851,0.002,3129.4,3129.3,0.82295602]
[1763519955061,0.002,3129.4,3129.3,0.791]
[1763519955266,0.002,3129.4,3129.3,0.82295602]
[1763519955671,0.002,3129.7,3129.3,1.04397813]
[1763519955963,0.002,3129.7,3129.6,0.395]
[1763519956169,0.002,3129.7,3129.6,0.79]
[1763519956567,0.002,3130.1,3129.7,0.395]
[1763519956736,0.002,3130.1,3130.0,0.395]
[1763519957134,0.002,3130.1,3130.0,0.79]
[1763519959146,0.002,3130.9,3130.0,0.79]
[1763519959347,0.002,3130.9,3130.8,0.5]
[1763519959749,0.002,3130.9,3130.8,0.895]
[1763519965982,0.002,3130.9,3130.8,1.53240508]
[1763519967782,0.002,3130.9,3130.8,1.56434579]
[1763519967979,0.002,3130.9,3130.8,1.53240508]
[1763519969693,0.4161,3131.8,3130.8,1.13740508]
[1763519969885,0.4161,3131.8,3131.2,0.441]
[1763519970835,0.1821,3132.1,3131.3,0.441]
[1763519970986,0.1821,3132.1,3131.1,0.1848]
[1763519971194,0.1821,3132.1,3130.8,0.74240508]
[1763519971494,0.1821,3132.1,3130.8,1.18340508]
[1763519971701,0.4621,3132.0,3130.8,1.18340508]
[1763519971908,0.4621,3132.0,3129.8,3.22536315]
[1763519971909,0.646,3130.9,3130.1,2.05274547]
[1763519972114,0.646,3130.9,3130.1,0.35388595]
[1763519972115,0.3878,3130.6,3130.1,0.35388595]
[1763519972317,0.3878,3130.6,3129.7,0.441]
[1763519972517,0.4621,3130.5,3129.7,0.441]
[1763519973120,0.60748623,3131.4,3130.4,0.546]
[1763519973408,0.4621,3131.3,3130.4,0.546]
[1763519973810,0.4621,3131.3,3130.4,1.01894479]
[1763519974178,0.4621,3131.3,3130.5,0.441]
[1763519974416,0.405504,3132.0,3130.6,0.03194275]
[1763519974593,0.4621,3131.6,3130.6,0.03194275]
[1763519974790,0.4621,3131.6,3130.6,0.47294275]
[1763519974984,0.4621,3131.6,3130.6,0.441]
[1763519975311,0.4621,3131.6,3130.4,0.105]
[1763519976018,0.4621,3132.7,3131.5,0.6258]
[1763519976233,0.4621,3132.7,3131.9,0.441]
[1763519976929,0.50149488,3133.0,3132.6,0.5462]
[1763519977134,0.1955,3133.2,3132.6,0.5462]
[1763519977438,0.6821,3133.2,3132.3,0.1052]
[1763519977624,0.4866,3133.1,3132.3,0.1052]
[1763519978449,0.6906,3132.4,3131.7,0.441]
[1763519978739,0.6906,3132.4,3131.8,0.03193051]
[1763519979435,0.1948,3132.6,3131.8,0.47293051]
[1763519979725,0.1948,3132.6,3131.8,0.03193051]
[1763519979929,0.4866,3133.1,3131.9,0.441]
[1763519980146,0.1955,3133.2,3131.9,0.441]
[1763519980147,0.6821,3133.2,3132.5,0.441]
[1763519980439,0.6821,3133.2,3131.9,0.47292949]
[1763519980653,0.6821,3133.2,3131.7,0.21573694]
[1763519980654,0.4866,3133.1,3131.7,0.65673694]
[1763519980941,0.4866,3133.1,3131.7,0.441]
[1763519981833,0.4866,3133.1,3131.5,0.1848]
[1763519982334,0.405504,3133.0,3131.5,0.1848]
[1763519982827,0.405504,3132.8,3131.5,0.1848]
[1763519983340,0.4866,3132.7,3131.5,0.1848]
[1763519983809,0.4866,3132.7,3131.0,1.34799264]
[1763519983810,0.6906,3131.6,3130.8,1.69885952]
[1763519984003,0.6906,3131.6,3130.9,0.21398595]
[1763519984321,0.6906,3131.6,3130.7,0.441]
[1763519984627,0.1948,3131.9,3130.7,2.13985952]
[1763519984794,0.4866,3131.8,3130.7,0.441]
[1763519985328,0.4866,3131.8,3130.7,1.0723468]
[1763519985494,0.4866,3131.8,3130.8,0.3678199]
[1763519986030,0.4866,3131.8,3130.8,0.03194071]
[1763519986406,0.4866,3131.8,3130.6,1.69885952]
[1763519986605,0.4866,3131.8,3130.4,0.105]
[1763519987400,0.4866,3131.8,3130.4,1.80385952]
[1763519987619,0.4866,3131.8,3130.4,0.105]
[1763519987832,0.1948,3131.9,3130.5,0.71593492]
[1763519987833,0.4866,3131.7,3130.5,0.71593492]
[1763519988650,0.4866,3131.7,3130.5,0.24299115]
[1763519988947,0.4866,3131.7,3130.2,0.105]
[1763519989238,0.4866,3131.7,3130.3,0.03194581]
[1763519989604,0.4866,3131.7,3130.2,0.546]
[1763519990403,0.4866,3131.7,3130.2,0.105]
[1763519991402,0.4866,3131.7,3130.3,0.03194581]
[1763519991945,0.405504,3131.6,3130.4,0.03194479]
[1763519992146,0.4866,3131.5,3130.4,0.03194479]
[1763519992328,0.4866,3131.5,3130.3,0.03194581]
[1763519992646,0.1948,3131.9,3130.3,0.405504]
[1763519992810,0.1948,3131.9,3130.3,0.846504]
[1763519992811,0.6814,3131.9,3130.3,0.846504]
[1763519993019,0.6814,3131.9,3130.4,0.26503635]
[1763519993213,0.4866,3131.8,3130.4,0.70603635]
[1763519993602,0.4866,3131.8,3130.4,0.26503635]
[1763519993803,0.1948,3131.9,3130.5,0.47294377]
[1763519994036,0.6814,3131.9,3130.6,0.24368396]
[1763519994252,0.6814,3131.9,3130.7,0.03194173]
[1763519994546,0.4866,3131.8,3130.7,0.441]
[1763519995286,0.4886,3131.8,3130.6,0.24368396]
[1763519995399,0.4886,3131.8,3130.4,0.26503635]
[1763519995605,0.4886,3131.8,3130.5,0.03194377]
[1763519996042,0.4886,3131.8,3130.6,0.441]
[1763519996250,0.4886,3131.8,3130.7,0.03194173]
[1763519996409,0.4886,3131.8,3130.7,0.47294173]
[1763519996837,0.50151162,3131.7,3130.7,0.47294173]
[1763519997241,0.4866,3131.6,3130.7,0.47294173]
[1763519997922,0.50151162,3131.7,3130.7,0.47294173]
[1763519998126,0.50151162,3131.7,3130.7,0.441]
[1763519998450,0.98811162,3131.7,3130.7,0.441]
[1763519999094,0.98811162,3131.7,3130.4,0.26503635]
[1763519999251,0.98811162,3131.7,3130.3,1.69985952]
[1763519999252,0.98811162,3131.7,3130.5,0.63748959]
[1763519999456,0.50151162,3131.7,3131.6,0.441]
[1763519999661,0.50151162,3131.7,3131.6,0.6258]
[1763519999812,0.002,3131.8,3131.6,1.0668]
[1763520000011,0.002,3131.8,3131.7,1.15856595]
[1763520000261,0.002,3131.8,3131.7,0.71756595]
[1763520000749,0.002,3131.8,3131.7,0.882]
[1763520000961,0.002,3131.8,3131.6,0.1848]
[1763520000962,0.002,3131.8,3131.5,0.03193357]
[1763520001250,0.002,3131.8,3131.3,0.1848]
[1763520001251,0.4886,3131.8,3131.3,0.1848]
[1763520001622,0.4958,3131.4,3130.9,1.69885952]
[1763520001812,0.2982,3131.2,3131.0,0.16988595]
[1763520002011,0.4939,3131.1,3131.0,0.16988595]
[1763520002207,0.4866,3131.5,3130.7,1.69885952]
[1763520002442,0.4866,3131.5,3130.5,1.89534911]
[1763520003194,0.4866,3131.7,3130.6,2.13985952]
[1763520004143,0.4866,3131.7,3130.5,1.89534911]
[1763520004340,0.4866,3131.7,3130.6,1.88839443]
[1763520004777,0.4866,3131.7,3130.7,0.441]
[1763520005070,0.4866,3131.7,3130.6,1.88839443]
[1763520009150,0.4866,3131.7,3130.7,1.69885952]
[1763520010658,0.6234,3130.8,3130.3,1.69985952]
[1763520010892,0.3886,3130.7,3130.3,1.69985952]
[1763520011094,0.856,3130.7,3130.3,0.18148595]
[1763520011309,0.4532,3130.4,3130.3,0.001]
[1763520011808,0.9206,3130.4,3130.3,0.001]
[1763520012364,1.326104,3130.4,3130.3,0.001]
[1763520012960,0.9206,3130.4,3130.3,0.001]
[1763520013385,0.875,3130.4,3130.3,0.001]
[1763520013919,0.875,3130.4,3129.9,0.001]
[1763520013920,0.405504,3130.3,3129.9,0.001]
[1763520014200,0.405504,3129.9,3129.6,0.001]
[1763520014428,0.5961,3129.7,3129.6,0.001]
[1763520014779,1.0635,3129.7,3129.6,0.001]
[1763520015799,0.5961,3129.7,3129.6,0.001]
[1763520016209,1.0635,3129.7,3129.6,0.001]
[1763520016801,0.4532,3129.7,3129.6,0.001]
[1763520017162,0.9206,3129.7,3129.6,0.001]
[1763520020099,1.326104,3129.7,3129.6,0.001]
[1763520021506,1.326104,3129.7,3129.3,0.001]
[1763520021507,0.405504,3128.6,3127.3,1.69885952]
[1763520021840,0.405504,3128.7,3127.2,0.5899]
[1763520022012,0.405504,3128.5,3127.2,0.5899]
[1763520022524,0.4718,3128.4,3127.2,0.5899]
[1763520023026,0.4718,3128.4,3127.2,0.1459]
[1763520033231,0.4718,3128.4,3127.4,0.444]
[1763520034051,0.4718,3128.4,3127.2,0.1459]
[1763520035380,0.4718,3128.4,3127.2,0.5899]
[1763520035584,0.002,3128.6,3127.6,0.444]
[1763520035931,0.002,3128.6,3127.7,0.03197237]
[1763520036165,0.002,3128.6,3127.7,0.444]
[1763520036723,0.002,3128.6,3128.5,0.444]
[1763520036834,0.002,3128.6,3128.5,0.5492]
[1763520037044,0.002,3128.6,3128.5,0.9932]
[1763520038481,0.002,3128.6,3128.5,0.5492]
[1763520038789,0.002,3128.6,3128.3,0.1052]
[1763520039077,0.002,3128.6,3128.5,0.444]
[1763520039459,0.002,3128.6,3128.5,0.888]
[1763520039845,0.002,3128.6,3128.5,0.444]
[1763520040184,0.002,3128.6,3128.3,0.1052]
[1763520040571,0.002,3128.6,3128.5,0.444]
[1763520042175,0.002,3128.6,3128.5,0.888]
[1763520043082,0.002,3128.6,3128.5,1.08121589]
[1763520047501,0.002,3128.6,3128.5,0.63721589]
[1763520047801,0.002,3128.6,3128.5,0.888]
[1763520049709,0.002,3128.6,3128.5,0.444]
[1763520049910,0.002,3128.6,3128.5,0.888]
[1763520050698,0.002,3128.6,3128.5,0.9199642]
[1763520051101,0.002,3128.6,3128.5,1.293504]
[1763520051302,0.002,3128.6,3128.5,1.72592382]
[1763520051821,0.002,3128.6,3128.5,4.33177598]
[1763520052314,0.002,3128.6,3128.5,2.63291646]
[1763520052918,0.002,3128.6,3128.5,5.97095226]
[1763520053109,0.002,3128.6,3128.5,2.60095226]
[1763520053994,0.002,3128.6,3128.5,2.19544826]
[1763520054489,0.002,3128.6,3128.5,1.79499264]
[1763520054694,0.002,3128.6,3128.5,3.49313411]
[1763520055308,0.002,3128.6,3128.5,3.52509831]
[1763520055512,0.002,3128.6,3128.5,0.9199642]
[1763520056316,0.002,3128.6,3128.5,0.444]
[1763520057629,0.002,3128.6,3128.5,0.888]
[1763520057931,0.002,3128.6,3128.5,1.10998346]
[1763520059632,0.002,3128.6,3128.5,0.63401926]
[1763520063247,0.9267,3128.6,3128.5,1.69814147]
[1763520063548,0.002,3128.6,3128.3,1.69814147]
[1763520064057,0.4573,3128.4,3128.3,1.69814147]
[1763520064263,0.4573,3128.4,3128.0,1.54104152]
[1763520064557,0.4694,3128.6,3128.5,0.001]
[1763520064915,0.9267,3128.6,3128.5,0.001]
[1763520065218,0.9267,3128.6,3128.1,0.001]
[1763520065444,0.4525,3128.2,3128.1,0.001]
[1763520065945,0.9199,3128.2,3128.1,0.001]
[1763520071316,1.325404,3128.2,3128.1,0.001]
[1763520071722,0.405504,3128.1,3127.8,0.001]
[1763520071930,0.6532,3127.9,3127.8,0.001]
[1763520072237,1.058704,3127.9,3127.8,0.001]
[1763520072443,1.557304,3127.9,3127.8,0.001]
[1763520074705,0.405504,3127.8,3127.5,0.001]
[1763520074903,0.800504,3127.6,3127.5,0.001]
[1763520075417,1.299104,3127.6,3127.5,0.001]
[1763520080997,1.299104,3127.6,3127.1,0.001]
[1763520080998,0.405504,3127.5,3127.1,0.001]
[1763520081201,0.405504,3127.5,3126.8,0.001]
[1763520081202,7.98471995,3127.2,3126.8,0.001]
[1763520081409,7.98471995,3127.2,3126.0,0.001]
[1763520081410,0.405504,3126.8,3126.0,0.001]
[1763520081579,0.997104,3126.9,3126.0,0.001]
[1763520081580,0.835004,3126.1,3126.0,0.001]
[1763520081987,1.334504,3126.1,3126.0,0.001]
[1763520082479,1.334504,3126.1,3125.6,0.001]
[1763520082480,1.31249664,3125.7,3125.6,0.001]
[1763520082680,3.05545864,3125.7,3125.5,0.001]
[1763520083001,1.300404,3125.6,3125.5,0.001]
[1763520083696,1.300404,3125.6,3124.9,0.001]
[1763520083697,0.405504,3125.5,3124.9,0.001]
[1763520083902,0.837304,3125.4,3124.9,0.001]
[1763520084276,1.336804,3125.4,3124.9,0.001]
[1763520088740,0.9313,3125.4,3124.9,0.001]
[1763520089207,0.4827,3125.4,3124.9,0.001]